bitfinex/quotes_ETHUSD_20211001
["timestamp","ask_amount","ask_price","bid_price","bid_amount"]
[1633113280017,1.242091,3288.6,3288.5,1.9946831]
[1633113280817,1.242091,3288.6,3288.5,2.1082831]
[1633113281015,1.242091,3288.6,3288.5,1.9946831]
[1633113282017,1.2371095,3288.8,3288.6,0.64517967]
[1633113282218,1.2371095,3288.8,3288.7,13.732]
[1633113282417,1.2371095,3288.8,3288.7,21.135]
[1633113282615,1.2371095,3288.8,3288.7,21.84490361]
[1633113282816,1.2371095,3288.8,3288.7,8.29490361]
[1633113283015,1.2371095,3288.8,3288.7,7.585]
[1633113283216,1.2371095,3288.8,3288.7,4.73904]
[1633113283415,1.51775627,3288.8,3288.7,4.73904]
[1633113285018,1.2371095,3288.8,3288.7,5.6813553]
[1633113287217,1.2371095,3288.8,3288.7,6.9753553]
[1633113288619,1.2371095,3288.8,3288.7,13.0843553]
[1633113288820,1.2371095,3288.8,3288.7,6.9753553]
[1633113289018,1.2371095,3288.8,3288.7,24.8553553]
[1633113289218,1.2371095,3288.8,3288.7,6.39053468]
[1633113289423,1.2371095,3288.8,3288.7,4.73904]
[1633113289820,1.51775641,3288.8,3288.7,4.73904]
[1633113290418,1.51775641,3288.8,3288.7,5.56695841]
[1633113290619,1.2371095,3288.8,3288.7,5.56695841]
[1633113293222,0.003,3289.0,3288.8,0.13766994]
[1633113293422,0.003,3289.0,3288.9,13.732]
[1633113293623,0.003,3289.0,3288.9,19.841]
[1633113293823,0.003,3289.0,3288.9,38.42990685]
[1633113294023,0.003,3289.0,3288.9,32.91390685]
[1633113294426,0.003,3289.5,3289.0,13.55]
[1633113294631,0.003,3289.5,3289.1,17.44133472]
[1633113294826,0.003,3289.5,3289.1,6.291]
[1633113295224,0.003,3289.5,3289.3,1.015]
[1633113295424,0.003,3289.5,3289.4,0.182]
[1633113295625,0.003,3289.5,3289.4,1.5156]
[1633113295826,0.003,3289.5,3289.4,1.3336]
[1633113297425,1.297,3289.5,3289.4,1.3659]
[1633113297627,0.003,3289.5,3289.4,1.3659]
[1633113299227,0.003,3289.5,3289.4,7.4749]
[1633113299427,0.003,3289.5,3289.3,8.30207327]
[1633113299627,0.003,3289.5,3289.3,7.59329]
[1633113299833,0.003,3289.5,3289.4,1.1839]
[1633113301429,0.28381833,3289.5,3289.4,1.1839]
[1633113301629,0.003,3289.5,3289.4,1.1839]
[1633113302828,0.003,3289.5,3289.4,12.10062404]
[1633113303028,0.003,3289.5,3289.4,1.57530579]
[1633113303227,0.003,3289.5,3289.4,0.86672404]
[1633113303830,3.21887,3289.8,3289.5,12.65]
[1633113304029,3.21887,3289.8,3289.6,4.55545]
[1633113304228,3.16887,3289.8,3289.6,4.55545]
[1633113304828,3.16887,3289.8,3289.6,28.54445]
[1633113305032,3.16887,3289.8,3289.6,4.55545]
[1633113305429,3.16887,3289.8,3289.6,7.59268]
[1633113305827,3.16887,3289.8,3289.6,7.49268]
[1633113306231,3.16887,3289.8,3289.7,5.97622961]
[1633113306427,3.16887,3289.8,3289.7,0.17622961]
[1633113306629,3.16887,3289.8,3289.6,7.49268]
[1633113306831,3.449774,3289.8,3289.5,6.07393]
[1633113307031,3.449774,3289.8,3289.6,0.17624186]
[1633113307230,3.449774,3289.8,3289.7,0.17623527]
[1633113307429,3.449774,3289.8,3289.5,6.0758]
[1633113307633,3.449774,3289.8,3289.6,0.17623737]
[1633113307831,3.449774,3289.8,3289.7,1.06469746]
[1633113308029,3.45061518,3289.8,3289.7,1.06469746]
[1633113308829,3.45061518,3289.8,3289.7,5.62089746]
[1633113309429,3.45061518,3289.8,3289.7,4.74342919]
[1633113311031,3.45061518,3289.8,3289.7,4.64342919]
[1633113312633,3.16971118,3289.8,3289.7,4.64342919]
[1633113313232,3.16971118,3289.8,3289.7,0.08722919]
[1633113313433,3.16971118,3289.8,3289.7,1.08632919]
[1633113313833,3.16971118,3289.8,3289.7,0.08722919]
[1633113314234,3.16971118,3289.8,3289.7,1.54792919]
[1633113314435,7.78309887,3289.8,3289.7,0.08722919]
[1633113314635,3.45061537,3289.8,3289.7,0.08722919]
[1633113315441,4.41715325,3289.8,3289.7,0.08722919]
[1633113316040,3.45061537,3289.8,3289.7,1.37012919]
[1633113316437,3.45061537,3289.8,3289.7,7.44534919]
[1633113317037,0.24270811,3289.8,3289.7,21.95623257]
[1633113317238,0.24270811,3289.8,3289.7,10.80157263]
[1633113317438,0.24270811,3289.8,3289.7,10.09560196]
[1633113318042,0.003,3290.0,3289.7,8.50430196]
[1633113318238,0.003,3290.0,3289.8,0.0247762]
[1633113318441,0.003,3290.0,3289.9,6.07378]
[1633113318640,0.003,3290.0,3289.9,6.08477095]
[1633113320041,0.26484294,3290.0,3289.9,6.08477095]
[1633113320440,0.16484294,3290.0,3289.9,6.08477095]
[1633113321442,0.16484294,3290.0,3289.9,6.26677095]
[1633113322641,0.15426734,3290.0,3289.9,6.26677095]
[1633113323644,0.93821876,3290.4,3289.9,6.34528523]
[1633113324043,0.93821876,3290.4,3289.9,6.33429428]
[1633113324246,0.93821876,3290.4,3290.2,0.01099095]
[1633113325443,0.20814078,3290.3,3290.2,0.01099095]
[1633113325645,0.15814078,3290.3,3290.2,0.01099095]
[1633113327042,1.21012107,3290.3,3290.2,0.01099095]
[1633113329045,1.21099979,3290.3,3290.2,0.01099095]
[1633113329347,0.13766994,3288.8,3288.6,1.21827736]
[1633113329548,0.77400199,3288.7,3288.5,0.003]
[1633113329746,3.17817016,3288.6,3288.3,0.003]
[1633113329946,3.17817016,3288.6,3288.0,0.1232]
[1633113329947,3.051964,3288.6,3288.0,0.1232]
[1633113330148,0.011904,3288.6,3288.1,0.003]
[1633113330547,0.13766994,3288.8,3288.2,0.9527]
[1633113330747,0.13766994,3288.8,3287.9,0.182]
[1633113330953,0.13766994,3288.8,3288.3,0.003]
[1633113330954,0.18267656,3288.6,3288.3,0.003]
[1633113331149,0.18267656,3288.6,3288.0,3.04483]
[1633113331349,0.18267656,3288.6,3288.1,0.78952517]
[1633113331548,0.18267656,3288.6,3288.2,1.1707]
[1633113331748,0.18267656,3288.6,3288.3,1.1798]
[1633113331952,0.18267656,3288.6,3288.4,5.53988]
[1633113332147,0.18267656,3288.6,3288.4,4.56138]
[1633113332348,0.18267656,3288.6,3288.5,0.003]
[1633113334549,0.13766994,3288.8,3288.5,0.003]
[1633113334753,13.55,3288.6,3288.5,0.003]
[1633113334950,0.31966994,3288.8,3288.5,0.003]
[1633113335151,0.31966994,3288.8,3288.1,0.003]
[1633113335352,0.31966994,3288.8,3288.1,1.1923]
[1633113335751,0.13766994,3288.8,3288.5,0.86479056]
[1633113336223,0.18268893,3288.7,3288.6,0.9966]
[1633113337815,0.18268893,3288.7,3288.5,0.003]
[1633113338216,0.18268893,3288.7,3288.1,0.003]
[1633113338416,0.18268893,3288.7,3288.0,0.006]
[1633113338819,0.93613683,3288.5,3288.1,0.71756191]
[1633113339215,0.93613683,3288.5,3288.2,0.003]
[1633113340214,0.93613683,3288.5,3288.3,0.1040448]
[1633113340615,0.93613683,3288.5,3288.4,0.003]
[1633113341015,3.0398473,3288.7,3288.4,0.003]
[1633113341418,3.0398473,3288.7,3288.4,0.17928657]
[1633113341419,0.18268906,3288.5,3288.4,0.17928657]
[1633113341616,0.18268906,3288.5,3288.4,0.17928423]
[1633113341819,0.18268906,3288.5,3288.4,6.08058]
[1633113342020,0.18268906,3288.5,3288.4,6.25685382]
[1633113342219,0.18268906,3288.5,3288.4,7.54345382]
[1633113342417,0.18268906,3288.5,3288.4,6.25685382]
[1633113342616,0.18268906,3288.5,3288.4,7.16305382]
[1633113342820,0.18268906,3288.5,3288.4,6.25685382]
[1633113343016,0.18268906,3288.5,3288.4,0.17927382]
[1633113343216,0.18268906,3288.5,3288.4,0.003]
[1633113343618,0.18268906,3288.5,3288.4,0.17927862]
[1633113343819,0.18268906,3288.5,3288.4,0.003]
[1633113344023,0.18268906,3288.5,3288.4,0.17927653]
[1633113344217,0.18268906,3288.5,3288.4,0.003]
[1633113344617,0.18268906,3288.5,3288.3,0.17627588]
[1633113344818,0.18268906,3288.5,3288.4,4.02627562]
[1633113345018,0.18268906,3288.5,3288.4,0.17927562]
[1633113345218,0.18268906,3288.5,3288.4,0.17928146]
[1633113345417,0.18268906,3288.5,3288.4,0.003]
[1633113345619,0.83168725,3288.6,3288.4,0.003]
[1633113345820,1.11086838,3288.5,3288.4,0.10401163]
[1633113346019,1.11086838,3288.5,3288.4,0.2802992]
[1633113346219,1.11086838,3288.5,3288.4,0.2832992]
[1633113346625,2.41298938,3288.5,3288.4,0.2832992]
[1633113346824,1.11898938,3288.5,3288.4,0.2832992]
[1633113347021,1.30167858,3288.5,3288.4,0.17928757]
[1633113347222,1.30167858,3288.5,3288.4,0.17929403]
[1633113347423,1.30167858,3288.5,3288.4,0.003]
[1633113347822,2.59567858,3288.5,3288.1,0.003]
[1633113348025,1.29355758,3288.5,3288.1,1.04753146]
[1633113348224,1.29355758,3288.5,3288.2,0.17629203]
[1633113348425,0.1826892,3288.5,3288.2,0.17929203]
[1633113348623,0.1826892,3288.5,3288.3,0.003]
[1633113350024,0.1826892,3288.5,3288.3,4.56182]
[1633113350224,0.1826892,3288.5,3288.4,0.1762846]
[1633113350422,0.1826892,3288.5,3288.4,0.1792846]
[1633113351023,0.1826892,3288.5,3288.4,0.003]
[1633113351224,0.90843075,3288.6,3288.4,0.10701163]
[1633113351422,0.89512117,3288.6,3288.5,0.17628616]
[1633113351623,0.89512117,3288.6,3288.5,0.17928616]
[1633113352024,0.13766994,3288.8,3288.5,0.17928616]
[1633113352424,0.18273824,3288.7,3288.5,0.17928616]
[1633113352623,0.18273824,3288.7,3288.6,0.1762874]
[1633113352825,0.18273824,3288.7,3288.6,0.17628781]
[1633113353024,0.18273824,3288.7,3288.1,0.17928754]
[1633113353226,1.27569542,3288.7,3288.1,4.56218]
[1633113353426,0.18273824,3288.7,3288.2,0.003]
[1633113354230,1.10101265,3288.7,3288.2,4.56196]
[1633113354435,1.07402112,3288.6,3288.2,0.003]
[1633113354627,1.07402112,3288.6,3288.3,0.003]
[1633113354828,1.07402112,3288.6,3288.0,0.006]
[1633113355029,1.07402112,3288.6,3288.1,1.1521]
[1633113355227,1.07402112,3288.6,3288.0,0.006]
[1633113355427,1.10101265,3288.7,3288.3,4.55882]
[1633113355629,1.10101265,3288.7,3288.2,0.003]
[1633113355832,1.10101265,3288.7,3288.4,0.003]
[1633113356229,1.10101265,3288.7,3288.1,0.003]
[1633113356429,0.98997129,3288.6,3288.1,0.003]
[1633113356629,0.98997129,3288.6,3288.2,0.10401163]
[1633113357033,0.98997129,3288.6,3288.3,0.003]
[1633113357429,0.99799729,3288.6,3288.3,0.003]
[1633113358029,1.180699,3288.6,3288.3,0.003]
[1633113358228,1.180699,3288.6,3287.7,1.2091]
[1633113358429,1.180699,3288.6,3287.8,0.86348017]
[1633113358828,1.180699,3288.6,3287.9,1.227]
[1633113359029,1.180699,3288.6,3288.0,1.4867]
[1633113359228,1.180699,3288.6,3288.0,1.2813]
[1633113359429,1.180699,3288.6,3288.1,0.003]
[1633113360232,1.180699,3288.6,3288.1,4.56221]
[1633113360631,0.19072771,3288.6,3288.2,0.003]
[1633113360833,0.18270171,3288.6,3288.2,0.003]
[1633113361031,0.18270171,3288.6,3288.1,1.0191]
[1633113361233,0.18270171,3288.6,3288.3,4.55869]
[1633113361431,0.18270171,3288.6,3288.3,1.2111]
[1633113361632,0.18270171,3288.6,3288.4,2.3874]
[1633113361835,0.18270171,3288.6,3288.5,14.40043314]
[1633113362032,0.18270171,3288.6,3288.5,14.58543314]
[1633113362239,0.13766994,3288.8,3288.7,13.80774]
[1633113362431,0.13766994,3288.8,3288.7,5.37965954]
[1633113362632,0.13766994,3288.8,3288.7,4.73974]
[1633113362833,0.13766994,3288.8,3288.7,6.03374]
[1633113363035,0.13766994,3288.8,3288.7,4.73974]
[1633113363433,0.32043291,3288.8,3288.7,4.73974]
[1633113363835,0.32043291,3288.8,3288.7,4.55774]
[1633113364035,3.49023243,3288.8,3288.5,0.003]
[1633113364234,0.50243291,3288.8,3288.5,0.003]
[1633113364434,0.93043263,3288.6,3287.9,0.006]
[1633113364839,0.93043263,3288.6,3287.7,0.1228]
[1633113365034,0.93043263,3288.6,3287.8,0.006]
[1633113365433,0.88043263,3288.6,3287.8,0.006]
[1633113365833,0.8424841,3288.6,3287.8,0.006]
[1633113366239,5.4022741,3288.6,3287.8,4.56569]
[1633113366434,0.75811912,3288.1,3287.8,4.55969]
[1633113366635,0.75811912,3288.1,3287.9,0.006]
[1633113366834,9.1195273,3288.7,3287.9,0.006]
[1633113367233,9.1195273,3288.7,3287.8,0.006]
[1633113367438,9.1090395,3288.7,3287.8,0.006]
[1633113367836,0.90295116,3288.2,3287.9,0.10407797]
[1633113368037,6.0690895,3288.7,3288.1,4.55927]
[1633113368239,3.0397173,3288.7,3288.2,0.17629593]
[1633113368435,3.0397173,3288.7,3288.2,0.17929593]
[1633113368635,0.31966994,3288.8,3288.3,0.003]
[1633113369035,0.18268976,3288.6,3288.3,0.003]
[1633113369235,2.04905046,3288.5,3288.2,0.003]
[1633113369435,3.0399248,3288.4,3288.2,0.003]
[1633113369837,2.04905046,3288.5,3288.0,0.006]
[1633113370042,2.04905046,3288.5,3288.1,0.17629525]
[1633113370237,9.4,3288.1,3287.6,1.47269525]
[1633113370440,0.2,3288.2,3287.7,0.17630485]
[1633113370441,6.28107,3288.2,3287.7,0.17630485]
[1633113370639,0.02468007,3287.8,3287.5,0.003]
[1633113370839,0.02468007,3287.8,3287.6,8.52730475]
[1633113370840,0.56931207,3287.8,3287.6,8.52730475]
[1633113371239,0.56931207,3287.8,3287.5,0.003]
[1633113371437,3.30559668,3287.7,3287.6,10.0]
[1633113371638,7.86689668,3287.7,3287.6,10.0]
[1633113371838,5.53899853,3287.7,3287.6,10.0]
[1633113372039,0.97769853,3287.7,3287.6,10.0]
[1633113373238,0.97769853,3287.7,3287.6,10.10427706]
[1633113373437,2.28068953,3287.7,3287.6,10.10427706]
[1633113373638,0.008991,3287.7,3287.6,10.10427706]
[1633113374439,0.53149,3287.8,3287.6,10.0]
[1633113374638,0.18249423,3287.7,3287.6,10.0]
[1633113378440,1.08575505,3287.7,3287.6,10.0]
[1633113378641,0.90326082,3287.7,3287.6,10.10427706]
[1633113379842,0.90326082,3287.7,3287.6,10.0]
[1633113379843,1.08575519,3287.7,3287.6,10.0]
[1633113380044,5.64705519,3287.7,3287.6,10.0]
[1633113380243,1.08575519,3287.7,3287.6,10.0]
[1633113381242,0.18249437,3287.7,3287.6,10.0]
[1633113382443,1.24310653,3287.7,3287.6,10.0]
[1633113383644,1.42510653,3287.7,3287.6,10.0]
[1633113384245,1.24261216,3287.7,3287.6,10.10427706]
[1633113384646,9.24261216,3287.7,3287.6,10.10427706]
[1633113384846,8.182,3287.7,3287.6,10.10427706]
[1633113385446,8.36449451,3287.7,3287.6,10.0]
[1633113385843,9.26782413,3287.7,3287.6,10.0]
[1633113389649,9.08532962,3287.7,3287.6,10.0]
[1633113389848,9.08532962,3287.7,3287.6,10.10427706]
[1633113390855,9.26782427,3287.7,3287.6,10.0]
[1633113395251,9.08532962,3287.7,3287.6,10.10427706]
[1633113395453,8.182,3287.7,3287.6,10.10427706]
[1633113395652,8.0,3287.7,3287.6,10.10427706]
[1633113396454,8.18249479,3287.7,3287.6,10.0]
[1633113399658,8.08390139,3287.7,3287.6,10.0]
[1633113400657,7.9014066,3287.7,3287.6,10.28061244]
[1633113401921,8.08390153,3287.7,3287.6,10.17633538]
[1633113406262,7.9014066,3287.7,3287.6,10.28061244]
[1633113407464,8.08390167,3287.7,3287.6,10.17633538]
[1633113408664,8.08390167,3287.7,3287.6,14.73687538]
[1633113409069,8.08390167,3287.7,3287.6,15.63342274]
[1633113410069,8.08390167,3287.7,3287.6,18.24252274]
[1633113410267,8.08390167,3287.7,3287.6,17.5367638]
[1633113410467,8.08390167,3287.7,3287.6,19.0206638]
[1633113410668,8.08390167,3287.7,3287.6,17.5367638]
[1633113411068,8.08390167,3287.7,3287.6,17.97221644]
[1633113411268,8.08390167,3287.7,3287.6,16.64021644]
[1633113411672,8.08390167,3287.7,3287.6,17.8101935]
[1633113411673,7.9014066,3287.7,3287.6,17.8101935]
[1633113411870,7.9014066,3287.7,3287.6,16.7444935]
[1633113412769,7.8909188,3287.7,3287.6,17.39501462]
[1633113412971,8.07341401,3287.7,3287.6,17.39501462]
[1633113413169,8.07341401,3287.7,3287.6,18.61641462]
[1633113413973,8.07341401,3287.7,3287.6,17.32241462]
[1633113414178,8.07341401,3287.7,3287.6,16.56761644]
[1633113414571,8.07341401,3287.7,3287.6,16.37031644]
[1633113414771,8.07341401,3287.7,3287.6,15.34621644]
[1633113415771,8.07341401,3287.7,3287.6,16.38481644]
[1633113415971,8.07341401,3287.7,3287.6,16.28141644]
[1633113416373,8.07341401,3287.7,3287.6,15.34621644]
[1633113416776,0.18249521,3287.7,3287.6,16.64021644]
[1633113417083,0.53149,3287.8,3287.7,14.34606398]
[1633113417275,0.2,3288.2,3287.7,16.74580522]
[1633113417475,0.2,3288.2,3287.9,3.03869]
[1633113417676,0.2,3288.2,3288.0,0.35829387]
[1633113417877,0.2,3288.2,3288.1,0.35829509]
[1633113418477,0.29137005,3288.2,3288.1,0.35829509]
[1633113418676,0.29137005,3288.2,3288.1,4.91762509]
[1633113418878,0.29137005,3288.2,3288.1,5.83045564]
[1633113419077,0.29137005,3288.2,3288.1,7.12445564]
[1633113419282,0.29137005,3288.2,3288.1,10.0628331]
[1633113420088,0.29137005,3288.2,3288.1,11.55464474]
[1633113420482,0.29137005,3288.2,3288.1,10.0628331]
[1633113422684,0.2,3288.2,3288.1,10.25819185]
[1633113423285,0.2,3288.2,3288.1,8.0513613]
[1633113423489,15.058767,3288.2,3287.8,6.6944804]
[1633113423693,15.058767,3288.2,3287.6,10.0]
[1633113423694,6.49891556,3287.7,3287.6,10.0]
[1633113423888,17.05108444,3287.6,3287.5,0.003]
[1633113424090,13.55,3287.5,3286.5,2.52633543]
[1633113424291,0.019925,3287.1,3286.5,0.466]
[1633113424491,7.60088,3286.9,3286.6,6.40610123]
[1633113424687,13.566502,3286.7,3286.3,0.12818444]
[1633113424888,4.559,3286.5,3286.3,0.10119105]
[1633113425088,0.182,3286.4,3286.3,2.56119105]
[1633113425288,0.182,3286.4,3286.3,3.85519105]
[1633113425486,0.53149,3286.8,3286.3,2.29673867]
[1633113425689,0.53149,3286.8,3286.3,1.00273867]
[1633113426088,0.53149,3286.8,3286.3,0.10119105]
[1633113426089,0.182,3286.7,3286.3,0.10119105]
[1633113426288,1.20978688,3286.4,3286.3,0.10119105]
[1633113426491,1.39178688,3286.4,3286.3,0.10119105]
[1633113426890,0.191372,3286.4,3286.3,9.105e-05]
[1633113427094,1.485372,3286.4,3286.3,9.105e-05]
[1633113427891,6.044372,3286.4,3286.3,9.105e-05]
[1633113428093,6.044372,3286.4,3285.6,0.003]
[1633113428094,3.0426501,3286.1,3285.6,9.105e-05]
[1633113428293,18.123439,3285.7,3285.6,9.105e-05]
[1633113428490,9.320549,3285.7,3284.7,0.00609105]
[1633113428690,4.559,3285.5,3284.7,0.00609105]
[1633113428963,0.8782692,3285.1,3284.7,0.00609105]
[1633113429091,0.182,3285.0,3284.7,0.00609105]
[1633113429289,0.182,3284.9,3284.7,0.00609105]
[1633113429489,0.182,3284.8,3284.7,0.00609105]
[1633113430790,0.182,3284.8,3284.5,0.00909105]
[1633113431388,0.182,3284.8,3284.2,4.56437]
[1633113431589,0.182,3284.8,3284.5,0.00084817]
[1633113431991,0.182,3284.8,3284.6,0.00609105]
[1633113432203,3.23160082,3285.3,3284.6,0.00609105]
[1633113432393,2.15690843,3285.0,3284.6,0.00609105]
[1633113432792,0.97144472,3285.0,3284.6,0.00609105]
[1633113433791,0.97144472,3285.0,3284.7,0.09879196]
[1633113434192,0.97144472,3285.0,3284.8,0.00609105]
[1633113434796,1.11433436,3284.9,3284.8,0.00609105]
[1633113434994,2.62153361,3284.9,3284.8,0.00609105]
[1633113435194,2.80353361,3284.9,3284.8,0.00609105]
[1633113435394,2.80353361,3284.9,3284.6,0.00609105]
[1633113435594,1.50953361,3284.9,3284.6,0.00609105]
[1633113435995,1.294,3284.8,3284.6,0.00609105]
[1633113436195,14.65813111,3284.7,3284.6,0.00609105]
[1633113436394,1.86661011,3284.7,3284.6,0.00609105]
[1633113437193,3.16061011,3284.7,3284.6,0.00609105]
[1633113439194,3.16061011,3284.7,3284.6,0.10493288]
[1633113439397,0.00075183,3284.5,3284.0,2.46]
[1633113439600,0.003,3284.0,3283.5,0.003]
[1633113439799,1.07701819,3283.9,3283.2,0.003]
[1633113440001,0.92134065,3283.3,3282.7,0.006]
[1633113440397,1.1585623,3283.3,3283.2,0.003]
[1633113440599,0.23722165,3283.3,3283.2,0.003]
[1633113440798,0.23722165,3283.3,3283.2,2.46]
[1633113441271,0.23722165,3283.3,3283.2,2.466]
[1633113441472,0.23722165,3283.3,3283.2,2.46]
[1633113442679,0.23722165,3283.3,3283.2,3.24449066]
[1633113443676,0.23722165,3283.3,3283.2,2.46]
[1633113444081,1.13948799,3283.3,3283.2,2.46]
[1633113444477,0.23722165,3283.3,3283.1,0.006]
[1633113444677,0.182,3283.4,3283.3,3.74986995]
[1633113444878,0.182,3283.4,3283.3,0.04986995]
[1633113445079,0.182,3283.4,3283.3,0.05586995]
[1633113445880,1.35805145,3283.4,3283.3,0.006]
[1633113446281,1.35805145,3283.4,3283.1,0.006]
[1633113446480,1.59534683,3283.4,3283.1,0.006]
[1633113447281,0.41929538,3283.4,3283.1,0.006]
[1633113448088,0.23729538,3283.4,3283.2,1.294]
[1633113448286,0.23729538,3283.4,3283.3,16.04302563]
[1633113448484,0.182,3285.2,3283.6,4.56427]
[1633113448684,0.007991,3285.1,3283.7,1.4082]
[1633113448885,0.007991,3284.6,3283.7,0.003]
[1633113449084,0.182,3285.2,3283.8,2.3663]
[1633113449085,0.189991,3285.2,3283.8,2.3663]
[1633113449285,0.189991,3285.2,3283.9,1.1106]
[1633113449484,0.189991,3285.2,3283.9,11.42463851]
[1633113449684,0.189991,3285.2,3283.9,12.61533851]
[1633113449884,1.21707081,3285.0,3283.9,0.97463851]
[1633113450088,1.21707081,3285.0,3283.9,2.34463851]
[1633113450285,0.007991,3284.7,3283.9,0.17130139]
[1633113450685,0.007991,3284.7,3283.9,1.46530139]
[1633113451089,1.21707081,3285.0,3283.9,1.46530139]
[1633113451287,3.88037812,3285.1,3284.5,0.79010305]
[1633113451487,3.04305,3285.6,3285.0,0.003]
[1633113451488,0.182,3285.2,3285.0,0.003]
[1633113451888,0.182,3285.2,3284.6,2.90197019]
[1633113452089,0.182,3285.2,3284.7,0.003]
[1633113452289,1.07854408,3285.1,3284.7,0.003]
[1633113452688,1.07854408,3285.1,3284.5,0.006]
[1633113452887,1.07854408,3285.1,3284.3,1.2102]
[1633113453092,1.07854408,3285.1,3284.4,0.006]
[1633113453287,1.00610714,3284.8,3284.4,0.006]
[1633113453487,1.00610714,3284.8,3284.3,0.006]
[1633113454089,0.97808019,3284.4,3284.3,0.006]
[1633113454288,0.97808019,3284.4,3284.2,4.56481]
[1633113454490,0.182,3285.2,3284.2,4.56481]
[1633113454690,0.182,3285.2,3284.3,1.2893]
[1633113454889,0.182,3285.2,3284.3,1.3824]
[1633113455090,0.182,3285.2,3284.4,0.006]
[1633113455491,0.92436361,3284.7,3284.4,0.96676491]
[1633113455699,0.92436361,3284.7,3284.5,0.16800211]
[1633113455961,0.92436361,3284.7,3284.5,0.17400211]
[1633113456093,0.92436361,3284.7,3284.6,0.003]
[1633113456293,0.88716823,3285.0,3284.6,0.003]
[1633113457393,1.08692698,3284.8,3284.6,4.5644]
[1633113457595,1.07643918,3284.8,3284.6,4.5644]
[1633113457794,1.07643918,3284.8,3284.7,0.003]
[1633113457993,0.11900349,3284.9,3284.7,0.003]
[1633113458592,0.11900349,3284.9,3284.4,2.83828163]
[1633113458796,0.11900349,3284.9,3284.8,13.558192]
[1633113458999,0.53449,3286.0,3285.8,0.72307721]
[1633113459395,0.53449,3286.0,3285.7,1.3936]
[1633113459596,0.53449,3286.0,3285.5,0.009697]
[1633113459796,0.53449,3286.0,3285.8,5.73108]
[1633113459997,0.53449,3286.0,3285.8,1.1691]
[1633113460196,0.53449,3286.0,3285.7,6.08264]
[1633113460395,0.53449,3286.0,3285.8,2.4027]
[1633113460595,0.53449,3286.0,3285.7,6.82893523]
[1633113460799,0.53449,3286.0,3285.8,0.9309]
[1633113460995,0.53449,3286.0,3285.7,6.82893523]
[1633113461196,0.53449,3286.0,3285.9,7.1271549]
[1633113461394,0.53449,3286.0,3285.9,0.2271549]
[1633113461596,1.565938,3286.0,3285.9,0.2271549]
[1633113462597,1.565938,3286.0,3285.7,6.08264]
[1633113462797,1.62572162,3286.0,3285.7,6.08264]
[1633113462997,0.59427362,3286.0,3285.7,6.08264]
[1633113463597,0.59427362,3286.0,3285.7,7.16774]
[1633113466200,0.74842912,3285.9,3285.7,7.16774]
[1633113466399,0.74842912,3285.9,3285.5,6.08368]
[1633113466599,0.74842912,3285.9,3285.5,7.08318]
[1633113466800,0.74842912,3285.9,3285.8,0.22718813]
[1633113467002,2.22442912,3285.9,3285.8,0.22718813]
[1633113467202,2.22870612,3285.9,3285.8,0.22718813]
[1633113467400,0.93470612,3285.9,3285.8,0.22718813]
[1633113467601,1.84020143,3285.9,3285.8,0.22718813]
[1633113468265,1.8999607,3285.9,3285.0,0.003]
[1633113468467,1.8999607,3285.9,3285.3,0.8082926]
[1633113469568,0.003,3286.5,3286.1,1.65919286]
[1633113469770,0.185,3287.0,3286.6,1.1404037]
[1633113469968,0.003,3287.0,3286.7,3.04056231]
[1633113470168,0.003,3287.0,3286.6,1.1404037]
[1633113470366,0.003,3287.0,3286.7,1.93727743]
[1633113470567,0.003,3287.0,3286.7,0.76747743]
[1633113470767,0.003,3287.0,3286.6,1.1404037]
[1633113470967,0.004094,3286.8,3286.6,1.1404037]
[1633113471368,1.25940719,3286.6,3286.1,1.2956]
[1633113471569,1.25940719,3286.6,3286.0,0.003]
[1633113471770,1.13751881,3285.5,3285.4,0.75986125]
[1633113471968,0.182,3286.0,3285.4,0.75386125]
[1633113472166,0.182,3286.0,3285.5,0.25706776]
[1633113472369,0.182,3286.0,3285.5,0.26306776]
[1633113472567,0.182,3286.0,3285.6,0.003]
[1633113472768,0.182,3286.5,3285.9,13.436416]
[1633113472969,0.80031483,3286.4,3285.9,2.03114408]
[1633113473167,1.25940719,3286.6,3286.0,0.003]
[1633113473771,0.02998997,3286.5,3286.0,0.003]
[1633113474070,0.99064149,3286.4,3285.6,0.003]
[1633113474269,0.182,3286.3,3285.5,0.006]
[1633113474469,0.81086394,3285.8,3285.7,0.003]
[1633113474668,0.81086394,3285.8,3285.2,0.74730769]
[1633113474868,0.81086394,3285.8,3285.3,0.006]
[1633113475068,1.19968901,3285.6,3285.3,0.006]
[1633113477669,1.19968901,3285.6,3285.1,0.006]
[1633113477868,1.19968901,3285.6,3285.4,0.25716745]
[1633113478268,1.19968901,3285.6,3285.5,0.006]
[1633113479268,1.22950769,3285.6,3285.5,0.006]
[1633113479467,1.22950769,3285.6,3285.3,0.73330111]
[1633113479668,0.02981868,3285.6,3285.4,0.006]
[1633113480073,1.868e-05,3285.6,3285.5,15.775187]
[1633113480270,1.868e-05,3285.6,3285.5,14.852487]
[1633113480473,1.868e-05,3285.6,3285.5,15.984787]
[1633113480670,1.868e-05,3285.6,3285.5,14.858487]
[1633113480874,1.868e-05,3285.6,3285.5,2.623987]
[1633113481069,1.868e-05,3285.6,3285.5,1.308487]
[1633113481269,1.868e-05,3285.6,3285.5,4.568487]
[1633113481471,1.868e-05,3285.6,3285.5,0.014487]
[1633113481673,1.868e-05,3285.6,3285.5,0.006]
[1633113481870,1.868e-05,3285.6,3285.5,2.4927]
[1633113482272,1.868e-05,3285.6,3285.5,7.158258]
[1633113482474,1.25940719,3286.6,3285.9,3.04087]
[1633113482674,1.25940719,3286.6,3285.9,4.35527]
[1633113482875,1.25940719,3286.6,3286.0,0.003]
[1633113483076,0.95477365,3286.5,3286.0,0.003]
[1633113483275,0.95477365,3286.5,3286.0,0.27482761]
[1633113483276,2.0039483,3286.5,3286.0,0.27482761]
[1633113483876,3.80593121,3286.5,3286.0,0.27482761]
[1633113484076,0.182,3286.4,3286.0,0.27482761]
[1633113484676,1.294,3286.2,3286.0,0.003]
[1633113484876,13.732,3286.1,3286.0,0.003]